bitfinex-derivatives/quotes_ETHF0:USTF0_20251103
["timestamp","ask_amount","ask_price","bid_price","bid_amount"]
[1762154785105,0.40893014,3727.4,3726.8,3.2078]
[1762154785307,0.2981,3727.4,3726.8,3.2078]
[1762154785606,0.11078382,3727.3,3726.8,3.2078]
[1762154785811,0.1847,3727.5,3726.8,3.2078]
[1762154786012,0.2974,3726.9,3726.8,3.2078]
[1762154786508,0.40815055,3726.9,3726.8,3.2078]
[1762154786716,0.1718,3726.0,3725.6,3.2078]
[1762154787317,0.1718,3726.0,3725.8,0.48318]
[1762154787512,0.1718,3726.0,3725.6,5.01002475]
[1762154788211,0.1718,3726.0,3725.8,0.48318]
[1762154789115,0.1718,3726.6,3726.2,0.48313]
[1762154789318,0.1718,3726.6,3726.5,5.01002475]
[1762154789819,0.1718,3726.6,3726.5,3.2078]
[1762154790406,0.4692,3726.6,3726.5,3.2078]
[1762154790607,0.5797973,3726.6,3726.5,3.2078]
[1762154791309,0.2974,3726.2,3726.1,3.2078]
[1762154791612,0.4079973,3726.2,3726.1,3.2078]
[1762154792317,0.1847,3727.5,3726.1,3.2078]
[1762154792615,0.2974,3727.4,3727.3,1.80222475]
[1762154792807,0.2974,3727.4,3727.0,3.2078]
[1762154793007,0.1847,3727.5,3726.8,1.80222475]
[1762154794513,0.1847,3727.5,3726.8,2.28527475]
[1762154794716,0.1847,3727.5,3727.0,3.2078]
[1762154794914,0.2974,3727.1,3726.8,0.00314645]
[1762154795114,0.2974,3726.9,3726.8,0.00314645]
[1762154795621,0.1847,3727.5,3726.8,0.00314645]
[1762154796516,0.2974,3726.9,3726.8,0.00314645]
[1762154796713,3.2078,3727.2,3726.8,0.00314645]
[1762154796913,0.1847,3727.5,3726.8,0.00314645]
[1762154796914,0.1847,3727.5,3727.1,1.80222475]
[1762154797424,3.2078,3728.1,3727.4,3.2078]
[1762154797626,0.1718,3728.4,3727.4,3.2078]
[1762154798226,0.1718,3728.4,3727.6,1.80222475]
[1762154798624,0.1718,3728.4,3727.4,3.2078]
[1762154799327,0.1718,3728.4,3727.8,1.80222475]
[1762154799526,0.1718,3728.4,3728.1,3.2078]
[1762154800621,0.2974,3728.2,3728.1,3.2078]
[1762154800820,0.1718,3728.4,3727.7,3.2078]
[1762154800821,0.1718,3727.8,3727.7,3.2078]
[1762154802827,0.4692,3727.8,3727.7,3.2078]
[1762154803625,1.08007617,3727.8,3727.7,3.2078]
[1762154804330,1.18173922,3727.8,3727.7,3.2078]
[1762154804728,1.18402644,3727.8,3727.7,3.2078]
[1762154806331,0.88662644,3727.8,3727.7,3.2078]
[1762154806922,1.20212644,3727.8,3727.7,3.2078]
[1762154807123,1.20212644,3727.8,3727.2,3.2078]
[1762154807323,0.71253922,3727.7,3727.2,3.2078]
[1762154807528,0.17408722,3727.8,3727.2,3.2078]
[1762154807529,0.71253922,3727.6,3727.2,3.2078]
[1762154807731,0.17408722,3727.8,3727.2,3.2078]
[1762154807732,0.10166305,3727.5,3727.2,3.2078]
[1762154807930,0.17408722,3727.8,3727.3,1.80222475]
[1762154808127,0.17408722,3727.8,3727.6,3.2078]
[1762154810136,0.61230606,3727.7,3727.6,3.2078]
[1762154814934,0.92780606,3727.7,3727.6,3.2078]
[1762154815334,0.61230606,3727.7,3727.6,3.2078]
[1762154817844,0.1848,3727.5,3727.4,3.2078]
[1762154819940,0.28026854,3727.5,3727.4,3.2078]
[1762154821133,0.59576854,3727.5,3727.4,3.2078]
[1762154822246,0.17408722,3727.8,3727.4,5.01002475]
[1762154822247,0.07586547,3727.8,3727.4,5.01002475]
[1762154822546,0.1848,3727.5,3727.4,5.01002475]
[1762154822939,0.1848,3727.5,3727.4,3.2078]
[1762154823143,0.5003,3727.5,3727.4,3.2078]
[1762154824046,0.1848,3727.5,3727.4,3.2078]
[1762154827844,0.1848,3727.5,3727.2,3.2078]
[1762154829549,0.3155,3727.3,3727.2,3.2078]
[1762154829753,0.1848,3727.0,3726.8,3.21094645]
[1762154833350,0.3155,3726.9,3726.8,3.21094645]
[1762154834152,0.4252929,3726.9,3726.8,3.21094645]
[1762154834656,0.1097929,3726.9,3726.8,3.21094645]
[1762154834857,0.4252929,3726.9,3726.8,3.21094645]
[1762154835858,15.1332929,3726.9,3726.8,3.11046938]
[1762154836161,15.1332929,3726.9,3724.7,0.02684816]
[1762154836162,0.2909,3725.9,3725.4,3.2078]
[1762154836351,0.1699,3725.5,3725.4,3.2078]
[1762154836555,0.2796929,3725.5,3725.4,3.2078]
[1762154837459,0.57032605,3725.5,3725.4,3.2078]
[1762154838460,0.57032605,3725.5,3725.4,3.2109495]
[1762154838853,0.57032605,3725.5,3725.4,0.0031495]
[1762154839050,0.57024337,3725.5,3725.4,0.0031495]
[1762154840954,8.57024337,3725.5,3725.4,0.0031495]
[1762154841361,0.2909,3724.8,3724.7,0.02684816]
[1762154841761,0.1699,3725.0,3724.7,0.02684816]
[1762154842759,0.00299345,3724.8,3724.7,0.02939521]
[1762154844156,0.1699,3725.0,3724.7,0.02939521]
[1762154844773,0.1699,3725.5,3724.7,2.02984657]
[1762154844962,0.1699,3725.5,3725.2,3.2078]
[1762154846261,0.17260205,3725.5,3725.2,3.2078]
[1762154850968,3.2078,3726.6,3725.4,2.48368136]
[1762154851171,3.2078,3726.6,3725.8,3.2078]
[1762154851369,0.1667,3727.5,3726.4,0.48311]
[1762154851569,0.1667,3727.5,3727.4,3.2078]
[1762154851871,0.1667,3727.5,3726.5,3.2078]
[1762154851872,0.2712,3727.1,3726.5,3.2078]
[1762154852071,0.27584232,3727.0,3726.5,3.2078]
[1762154852272,0.1667,3727.0,3726.9,3.2078]
[1762154854376,0.1667,3727.0,3726.9,3.21098238]
[1762154854672,0.1667,3727.0,3726.9,0.00318238]
[1762154856279,0.4379,3727.0,3726.9,0.00318238]
[1762154859582,0.1667,3729.0,3727.0,6.7072]
[1762154859878,0.2712,3728.4,3728.3,3.2078]
[1762154860074,0.1667,3728.5,3728.3,3.2078]
[1762154860878,0.16998454,3728.5,3728.3,3.2078]
[1762154869283,0.1703,3728.0,3727.9,3.2078]
[1762154870482,0.16998454,3728.5,3727.9,3.2078]
[1762154870685,0.1703,3730.0,3728.4,5.20825136]
[1762154870881,0.1703,3729.0,3728.7,0.4828]
[1762154871179,0.1703,3729.0,3728.9,3.69058]
[1762154871677,0.17344631,3729.0,3728.9,3.90690584]
[1762154871883,0.17344631,3729.0,3728.9,3.69058]
[1762154873585,0.1703,3729.5,3729.4,2.00045136]
[1762154873886,0.1703,3729.5,3729.4,5.20825136]
[1762154874682,0.17260895,3729.5,3729.4,5.20825136]
[1762154876080,0.17260895,3729.5,3729.4,3.2078]
[1762154879988,0.43100895,3729.5,3729.4,3.2078]
[1762154881193,0.2584,3729.1,3729.0,3.2078]
[1762154881786,0.35884547,3729.1,3729.0,3.2078]
[1762154881989,0.2584,3728.7,3728.6,3.2078]
[1762154882679,0.35888532,3728.7,3728.6,3.2078]
[1762154883591,0.35892357,3728.7,3728.6,3.2078]
[1762154889398,0.97663327,3728.7,3728.6,3.2078]
[1762154890801,0.2584,3728.2,3728.1,3.2078]
[1762154891099,0.97673455,3728.2,3728.1,3.2078]
[1762154891296,0.1703,3728.0,3727.6,3.2078]
[1762154891494,0.2584,3727.7,3727.6,3.2078]
[1762154891798,0.10052357,3727.7,3727.6,3.2078]
[1762154892203,0.2584,3727.7,3727.6,3.2078]
[1762154892398,0.35892357,3727.7,3727.6,3.2078]
[1762154893790,0.10052357,3727.7,3727.6,3.2078]
[1762154893995,0.1703,3728.0,3727.6,3.2078]
[1762154896102,0.10452767,3727.9,3727.6,3.2078]
[1762154896305,0.10452767,3727.8,3727.6,3.2078]
[1762154896601,0.10452767,3727.7,3727.6,3.2078]
[1762154897804,0.36292767,3727.7,3727.6,3.2078]
[1762154901010,0.10452767,3727.7,3727.6,3.2078]
[1762154902198,0.1703,3728.0,3727.6,3.2078]
[1762154902399,0.1703,3728.0,3727.8,1.80484977]
[1762154906213,0.1703,3728.0,3727.8,2.28776977]
[1762154907510,0.1703,3728.5,3728.3,0.48286]
[1762154907717,0.1703,3728.5,3728.4,5.01264977]
[1762154908114,0.1703,3729.0,3728.7,0.4828]
[1762154908313,0.1703,3729.0,3728.9,5.01264977]
[1762154909120,0.1703,3729.0,3728.9,3.2078]
[1762154909420,0.422,3729.0,3728.9,3.2078]
[1762154909618,0.27506242,3729.0,3728.9,3.2078]
[1762154909818,0.1703,3729.0,3728.9,3.2078]
[1762154912822,0.1424,3728.5,3728.4,1.80484977]
[1762154913124,0.1424,3728.5,3728.4,5.01264977]
[1762154913716,0.1703,3729.0,3728.4,11.71744977]
[1762154913926,0.1703,3729.0,3728.9,5.01264977]
[1762154914521,0.1703,3729.0,3728.9,3.2078]
[1762154915725,0.422,3729.0,3728.3,3.2078]
[1762154915924,0.1424,3728.5,3728.3,3.2078]
[1762154920527,0.1424,3728.5,3728.2,1.80484977]
[1762154920722,0.1424,3728.5,3728.4,3.2078]
[1762154923131,0.3941,3728.5,3728.4,3.2078]
[1762154924235,0.49868404,3728.5,3728.4,3.2078]
[1762154924835,0.1424,3728.0,3727.9,3.2078]
[1762154925033,0.3941,3728.0,3727.9,3.2078]
[1762154925430,0.49870968,3728.0,3727.9,3.2078]
[1762154931239,0.1372,3727.0,3726.9,1.80803215]
[1762154931434,0.1372,3727.0,3726.9,5.01583215]
[1762154932040,0.1372,3727.0,3726.9,3.21098238]
[1762154936746,0.3745,3727.0,3726.9,3.21098238]
[1762154937949,0.1372,3727.0,3726.9,3.21098238]
[1762154938340,0.1372,3727.0,3726.9,4.37285052]
[1762154939547,0.1372,3727.0,3726.9,1.16505052]
[1762154939747,0.1372,3727.0,3726.9,4.37285052]
[1762154944250,0.3745,3727.0,3726.9,3.21098238]
[1762154944449,8.47898699,3727.0,3726.9,0.00318238]
[1762154944751,0.2373,3726.6,3726.5,3.2078]
[1762154944953,0.34178699,3726.6,3726.5,3.2078]
[1762154945359,0.2373,3726.2,3726.1,3.2078]
[1762154945559,0.2373,3725.8,3725.7,3.2078]
[1762154945851,0.2373,3725.8,3725.7,3.2106013]
[1762154947856,0.2373,3725.8,3725.7,0.0028013]
[1762154948158,0.1372,3726.0,3725.7,0.0028013]
[1762154948350,0.10435118,3725.9,3725.7,3.2106013]
[1762154948653,0.1372,3726.0,3725.7,3.2106013]
[1762154948856,0.10435131,3725.9,3725.7,3.2106013]
[1762154949054,0.1372,3726.0,3725.7,3.2106013]
[1762154950255,0.1372,3726.0,3725.8,1.80769086]
[1762154950557,0.1372,3726.0,3725.7,3.6938013]
[1762154951048,0.1372,3726.0,3725.7,3.2106013]
[1762154951459,0.1372,3726.0,3725.8,0.48319]
[1762154951752,0.1372,3726.5,3725.7,3.2106013]
[1762154952056,0.1372,3726.5,3726.4,3.2078]
[1762154952956,0.13999059,3726.5,3726.4,3.2078]
[1762154955949,0.1372,3728.0,3726.6,0.48308]
[1762154956155,0.1372,3728.0,3726.9,3.2078]
[1762154956949,0.14004243,3727.0,3726.9,3.2078]
[1762154960150,0.1372,3728.0,3727.3,0.48299]
[1762154960359,0.1372,3728.0,3727.4,5.20914776]
[1762154961062,0.1372,3728.0,3727.9,3.2078]
[1762154961063,0.13943922,3728.0,3727.9,3.2078]
[1762154961460,0.13943922,3728.0,3727.9,3.69072]
[1762154961661,0.00223922,3728.0,3727.9,3.69072]
[1762154962756,0.00223922,3728.0,3727.9,3.2078]
[1762154964658,0.00223922,3728.0,3727.3,0.48299]
[1762154964858,0.00223922,3728.0,3727.9,3.2078]
[1762154975264,0.00223922,3728.0,3727.9,3.69072]
[1762154976967,3.2078,3729.0,3727.9,3.2078]
[1762154977165,3.2078,3729.0,3728.4,3.2078]
[1762154977365,3.2078,3729.4,3728.4,3.2078]
[1762154977566,0.10440386,3729.3,3728.4,3.2078]
[1762154977758,0.10440386,3729.2,3728.4,3.2078]
[1762154977961,0.10440386,3729.1,3728.4,3.21113733]
[1762154978168,0.10440386,3729.0,3728.4,3.21113733]
[1762154978469,0.10440386,3728.9,3728.4,3.21113733]
[1762154978673,0.00204094,3729.2,3728.4,3.21113733]
[1762154978867,0.10446793,3729.1,3728.4,3.21113733]
[1762154979171,0.10446793,3729.0,3728.4,3.21113733]
[1762154979365,0.10446793,3728.9,3728.4,3.21113733]
[1762154979565,0.10446793,3728.8,3728.4,3.21113733]
[1762154979768,0.00204094,3729.2,3728.4,3.21113733]
[1762154979966,0.10454673,3729.1,3728.4,3.21113733]
[1762154980269,0.10454673,3729.0,3728.4,3.21113733]
[1762154980470,0.10454673,3728.9,3728.4,3.21113733]
[1762154980670,0.10454673,3728.8,3728.4,3.21113733]
[1762154980871,0.00204094,3729.2,3728.4,3.21113733]
[1762154981072,0.10460495,3729.1,3728.4,3.21113733]
[1762154981273,0.10460495,3729.0,3728.4,3.21113733]
[1762154981569,0.10460495,3728.9,3728.4,3.21113733]
[1762154981872,0.10460495,3728.8,3728.4,3.21113733]
[1762154982073,0.10460495,3728.7,3728.4,3.21113733]
[1762154982268,0.10374994,3728.6,3728.4,3.21113733]
[1762154982469,0.10374956,3728.5,3728.4,3.21113733]
[1762154985773,0.01581077,3728.5,3728.4,3.21113733]
[1762154985970,3.2078,3729.0,3728.4,0.00333733]
[1762154986172,0.61724789,3728.9,3728.4,0.00333733]
[1762154986465,0.61724789,3728.8,3728.4,0.00333733]
[1762154986672,0.61724789,3728.7,3728.4,0.00333733]
[1762154986876,0.61724789,3728.6,3728.4,0.00333733]
[1762154987179,0.61724789,3728.5,3728.4,0.00333733]
[1762154987475,0.61724789,3728.9,3728.4,0.00333733]
[1762154987674,0.61724789,3728.8,3728.4,0.00333733]
[1762154987876,0.61724789,3728.7,3728.4,0.00333733]
[1762154988076,0.61724789,3728.6,3728.4,0.00333733]
[1762154988273,0.61724789,3728.5,3728.4,0.00333733]
[1762154988471,0.61724789,3728.9,3728.4,0.00333733]
[1762154989581,15.32204789,3728.9,3728.0,3.2078]
[1762154989777,0.61724789,3728.8,3728.0,3.2078]
[1762154990079,3.2078,3728.6,3728.0,3.2078]
[1762154990275,0.61724789,3728.5,3728.0,3.2078]
[1762154990670,0.61724789,3728.5,3728.0,3.21110051]
[1762154993781,9.792,3728.4,3728.0,3.21110051]
[1762154994078,0.61724789,3728.3,3728.0,3.21110051]
[1762154995479,0.61724789,3728.3,3728.0,4.63618399]
[1762154995681,12.9988,3728.6,3728.0,4.63618399]
[1762154995881,0.61746635,3728.5,3728.0,3.21110051]
[1762154996183,0.61746635,3728.4,3728.0,3.21110051]
[1762154996384,0.61746635,3728.3,3728.0,3.21110051]
[1762154996582,0.61746635,3728.2,3728.0,3.21110051]
[1762154996777,12.9988,3728.6,3728.0,3.21110051]
[1762154996979,0.61744746,3728.5,3728.0,3.21110051]
[1762154997282,0.61744746,3728.4,3728.0,3.21110051]
[1762154997484,0.61744746,3728.3,3728.0,3.21110051]
[1762154997678,3.2078,3728.6,3728.0,3.21110051]
[1762154997879,0.7208143,3728.5,3728.0,3.21110051]
[1762154998079,0.7208143,3728.4,3728.0,3.21110051]
[1762154998281,0.10338385,3728.3,3728.0,3.21110051]
[1762154998579,0.10338385,3728.2,3728.0,3.21110051]
[1762154998884,0.10338385,3728.1,3728.0,3.21110051]
[1762155000578,0.72137264,3728.1,3728.0,0.00330051]
[1762155000784,0.72137264,3728.1,3727.6,3.2078]
[1762155000785,0.72137264,3728.1,3727.6,3.10416634]
[1762155001085,0.72137264,3728.0,3727.6,3.10416634]
[1762155001287,0.72137264,3727.9,3727.6,3.10416634]
[1762155001488,1.42508348,3728.2,3727.2,3.2078]
[1762155001489,10.50837264,3727.8,3727.2,3.2078]
[1762155001689,0.72137264,3727.7,3727.2,3.20999405]
[1762155001990,0.72137264,3727.6,3727.2,3.20999405]
[1762155002186,0.72137264,3727.5,3727.2,3.20999405]
[1762155002380,0.10338385,3727.4,3727.2,3.20999405]
[1762155002587,0.10338385,3727.3,3727.2,3.20999405]
[1762155003490,3.31118385,3727.3,3727.2,0.00219405]
[1762155003686,3.92870699,3727.3,3727.2,0.00219405]
[1762155004285,3.92849481,3727.3,3727.2,0.00219405]
[1762155004894,11.92849481,3727.3,3727.2,0.00219405]
[1762155005195,18.63569481,3727.3,3727.2,0.00219405]
[1762155006784,3.92849481,3727.3,3727.2,0.00219405]
[1762155006993,13.71249481,3727.3,3727.2,0.00219405]
[1762155008391,28.41969481,3727.3,3727.2,0.00219405]
[1762155012200,23.20375141,3727.3,3725.6,3.2078]
[1762155012492,3.2078,3726.1,3725.1,3.2078]
[1762155012698,9.88538385,3726.0,3725.1,3.2078]
[1762155012897,0.10338385,3725.9,3725.1,3.2078]
[1762155013096,0.00247971,3725.9,3725.1,3.21127367]
[1762155013496,3.2078,3725.6,3725.1,3.21127367]
[1762155013697,9.781,3725.5,3725.1,3.21127367]
[1762155018595,3.2078,3726.6,3725.4,1.8084958]
[1762155018796,9.88057644,3726.5,3725.5,3.2078]
[1762155018992,0.10257644,3726.4,3725.5,3.2078]
[1762155019193,0.10257644,3726.3,3725.9,3.2078]
[1762155019500,4.023,3726.2,3725.9,3.2078]
[1762155019702,8.079,3726.1,3725.9,3.2078]
[1762155021398,0.10261531,3726.0,3725.3,3.2078]
[1762155021599,0.10261531,3725.9,3725.3,3.2078]
[1762155021807,11.2868,3726.1,3725.3,3.2078]
[1762155022000,0.10261473,3726.0,3725.1,0.00347367]
[1762155022307,3.2078,3725.7,3725.1,0.00347367]
[1762155022499,9.87861473,3725.6,3725.1,0.00347367]
[1762155022698,9.776,3725.5,3725.3,3.2078]
[1762155022900,9.776,3725.4,3725.3,3.2078]
[1762155023509,9.776,3725.7,3725.3,3.2078]
[1762155025102,0.10264875,3725.6,3725.1,0.00347367]
[1762155025306,0.10264875,3725.5,3725.1,0.00347367]
[1762155025503,12.9838,3725.7,3725.1,0.00347367]
[1762155025808,0.10267732,3725.6,3725.1,0.00347367]
[1762155026000,0.10267732,3725.5,3725.1,0.00347367]
[1762155026202,12.9838,3725.7,3725.1,0.00347367]
[1762155026400,0.10271845,3725.6,3725.1,0.00347367]
[1762155026608,0.10271845,3725.5,3725.1,0.00347367]
[1762155026809,9.776,3725.7,3725.1,0.00347367]
[1762155027011,0.10271857,3725.6,3725.3,3.2078]
[1762155027203,0.10271857,3725.5,3725.3,3.2078]
[1762155027400,0.10271857,3725.4,3725.3,3.2078]
[1762155027805,0.10271857,3725.6,3725.3,3.2078]
[1762155028008,0.10271857,3725.5,3725.3,3.2078]
[1762155028305,9.776,3725.7,3725.1,0.00347367]
[1762155028306,0.10271857,3725.4,3725.1,0.00347367]
[1762155028511,0.10271857,3725.3,3725.1,0.00347367]
[1762155028708,12.9838,3725.7,3725.1,0.00347367]
[1762155028910,0.10284989,3725.6,3725.1,0.00347367]
[1762155029107,0.10284989,3725.5,3725.1,0.00347367]
[1762155029302,0.10284989,3725.4,3725.1,0.00347367]
[1762155029502,0.10284989,3725.3,3725.1,0.00347367]
[1762155029707,0.10284989,3725.2,3725.1,0.00347367]
[1762155030108,0.10284989,3725.6,3725.1,3.21127367]
[1762155030306,0.10284989,3725.5,3725.1,3.21127367]
[1762155030501,0.10284989,3725.4,3725.1,3.21127367]
[1762155030702,0.10284989,3725.3,3725.1,3.21127367]
[1762155030909,0.10284989,3725.2,3725.1,3.21127367]
[1762155031111,0.1381,3725.5,3725.1,3.21127367]
[1762155031308,0.10284989,3725.4,3725.1,3.21127367]
[1762155033320,0.10284989,3725.4,3725.1,0.00347367]
[1762155034110,0.1381,3725.5,3725.1,0.00347367]
[1762155034111,0.10284989,3725.3,3725.1,0.00347367]
[1762155034415,0.10284989,3725.2,3725.1,0.00347367]
[1762155034611,0.10284989,3725.4,3725.1,0.00347367]
[1762155034915,0.10284989,3725.3,3725.1,0.00347367]
[1762155035116,0.10284989,3725.2,3725.1,0.00347367]
[1762155035616,0.10284989,3725.4,3725.1,0.00347367]
[1762155035915,0.10284989,3725.3,3725.1,0.00347367]
[1762155036217,0.10284989,3725.2,3725.1,0.00347367]
[1762155036610,0.10284989,3725.4,3725.1,0.00347367]
[1762155036810,0.10284989,3725.3,3725.1,0.00347367]
[1762155037010,0.10284989,3725.2,3725.1,0.00347367]
[1762155037711,0.1381,3725.5,3725.1,0.00347367]
[1762155037712,0.10284989,3725.4,3725.1,0.00347367]
[1762155038017,0.10284989,3725.3,3725.1,0.00347367]
[1762155038205,0.10284989,3725.2,3725.1,0.00347367]
[1762155038411,0.32584989,3725.2,3725.1,0.00347367]
[1762155040819,0.10284989,3725.2,3725.1,0.00347367]
[1762155041010,0.1381,3726.0,3725.1,0.00347367]
[1762155041212,0.62971971,3725.9,3725.6,3.2078]
[1762155041412,0.62971971,3725.8,3725.6,3.2078]
[1762155041617,0.1381,3726.0,3725.6,3.2078]
[1762155041917,0.62983031,3725.9,3725.6,3.2078]
[1762155042118,0.62983031,3725.8,3725.6,3.2078]
[1762155042316,0.1381,3726.0,3725.7,1.16310862]
[1762155042916,0.62972943,3725.9,3725.6,4.37090862]
[1762155043219,0.1381,3726.0,3725.6,4.37090862]
[1762155043621,0.3611,3726.0,3725.9,1.16310862]
[1762155044015,0.99067187,3726.0,3725.9,1.16310862]
[1762155044210,0.3611,3726.0,3725.9,1.16310862]
[1762155044417,0.1381,3726.0,3725.9,1.16310862]
[1762155044620,0.1381,3726.0,3725.7,1.16310862]
[1762155044821,0.1381,3726.0,3725.8,0.48317]
[1762155045322,0.1381,3726.0,3725.8,7.19277]
[1762155047915,0.1381,3726.0,3725.8,7.19278]
[1762155048318,0.1381,3726.0,3725.8,6.7096]
[1762155048511,0.1381,3726.0,3725.7,2.32621724]
[1762155048715,0.1381,3726.0,3725.7,1.16310862]
[1762155050325,0.1381,3726.0,3725.6,3.2078]
[1762155052019,0.2292,3725.7,3725.6,3.2078]
[1762155052527,0.1381,3726.0,3725.6,3.2078]
[1762155055521,0.3673,3726.0,3725.9,3.2078]
[1762155057329,0.2292,3725.6,3725.5,3.2078]
[1762155066037,0.1381,3726.0,3725.5,3.2078]
[1762155066340,0.72410761,3725.9,3725.5,3.2078]
[1762155066529,0.09627339,3725.8,3725.5,3.2078]
[1762155066725,0.09627339,3725.7,3725.5,3.2078]
[1762155066927,0.1381,3726.0,3725.5,3.2078]
[1762155067127,0.72414511,3725.9,3725.5,3.2078]
[1762155067330,0.09627936,3725.8,3725.5,3.2078]
[1762155067529,0.09627936,3725.7,3725.5,3.2078]
[1762155067735,0.2292,3725.6,3725.5,3.2078]
[1762155068038,0.32548629,3725.6,3725.5,3.2078]
[1762155069938,0.2292,3725.2,3725.1,3.21127367]
[1762155070536,0.33941666,3725.2,3725.1,3.21127367]
[1762155071744,0.2288,3724.8,3724.7,0.02684816]
[1762155071942,1.50236851,3724.8,3724.7,0.02684816]
[1762155072446,0.33901666,3724.8,3724.7,0.02684816]
[1762155072645,0.33901666,3724.8,3724.7,0.02948455]
[1762155078355,0.11021666,3724.8,3724.7,1.62488442]
[1762155078953,0.33901666,3724.8,3724.7,0.02948455]
[1762155083153,0.11021666,3724.8,3724.7,0.02948455]
[1762155083460,0.11021666,3724.8,3724.7,0.19658455]
[1762155083958,0.11021666,3724.8,3724.7,1.62488442]
[1762155086058,1.666e-05,3724.8,3724.7,1.62488442]
[1762155087065,0.1381,3726.0,3724.7,1.45778442]
[1762155087263,0.1327,3725.5,3725.4,3.2645]
[1762155088960,0.1327,3725.5,3725.4,3.2078]
[1762155089263,0.1327,3725.5,3725.4,3.2645]
[1762155090558,0.1381,3726.0,3725.4,3.2645]
[1762155090964,0.1381,3726.0,3725.9,0.0567]
[1762155091663,0.2182,3725.9,3725.8,3.2078]
[1762155091964,0.3509,3725.5,3725.0,3.2078]
[1762155096669,0.1327,3725.5,3725.4,0.0567]
[1762155097463,0.76805877,3725.5,3725.4,0.0567]
[1762155097665,0.1381,3726.0,3725.4,4.69279987]
[1762155098063,0.12138034,3725.9,3725.8,0.0567]
[1762155098865,0.1327,3725.5,3725.4,3.2645]
[1762155099066,0.25408034,3725.5,3725.4,3.2645]
[1762155103373,0.47228034,3725.5,3725.4,3.2078]
[1762155103575,0.47228034,3725.5,3725.0,3.2078]
[1762155103779,0.2297,3725.1,3725.0,3.2078]
[1762155103975,0.35108034,3725.1,3725.0,3.2078]
[1762155105677,0.12138034,3725.1,3725.0,3.2646]
[1762155108580,0.11861964,3725.1,3725.0,3.2646]
[1762155112184,0.34831964,3725.1,3725.0,3.2078]
[1762155112783,0.11861964,3725.1,3725.0,3.2646]
[1762155114986,0.1381,3726.0,3725.0,3.2646]
[1762155114987,1.43947598,3726.8,3726.2,0.0568]
[1762155115180,0.63868132,3726.3,3726.2,0.0568]
[1762155115379,0.00219426,3726.3,3726.2,0.0568]
[1762155122287,0.23694,3727.0,3726.9,0.0568]
[1762155122488,0.23694,3727.0,3726.9,1.48509987]
[1762155122694,0.10124,3727.0,3726.9,1.48509987]
[1762155123296,0.1304,3728.0,3726.9,8.13629987]
[1762155123597,0.1304,3728.0,3727.7,3.2078]
[1762155124191,0.1304,3728.5,3727.8,1.42829987]
[1762155124400,0.1331441,3728.5,3728.1,3.2078]
[1762155124599,0.1304,3728.0,3727.8,0.00288692]
[1762155124893,0.2297,3727.9,3727.8,0.00288692]
[1762155127201,0.34121667,3727.9,3727.8,0.00288692]
[1762155127503,0.11151667,3727.9,3727.8,0.00288692]
[1762155127890,0.11151667,3727.9,3727.8,3.21068692]
[1762155128090,0.1304,3728.0,3727.8,3.21068692]
[1762155128296,0.1331441,3728.5,3727.9,0.48291]
[1762155128493,0.1331441,3728.5,3728.2,3.2078]
[1762155128697,0.0027441,3728.5,3728.2,3.2078]
[1762155129095,0.1304,3729.5,3728.2,3.2078]
[1762155129298,0.1304,3729.5,3728.8,5.20718986]
[1762155129497,0.1304,3729.0,3728.8,3.2078]
[1762155129897,0.1304,3729.5,3728.8,3.2078]
[1762155130201,0.13384372,3729.5,3729.2,3.2078]
[1762155130403,0.00344372,3729.5,3729.2,3.2078]
[1762155130798,0.13384372,3729.5,3729.2,3.2078]
[1762155131402,0.00344372,3729.5,3729.2,3.2078]
[1762155132408,0.00344372,3729.5,3729.3,1.80336884]
[1762155134006,3.3382,3731.0,3729.3,1.80336884]
[1762155134203,3.3382,3731.0,3729.7,3.2078]
[1762155134804,3.2078,3730.6,3729.7,3.2078]
[1762155135003,0.1357,3730.0,3729.7,3.2078]
[1762155136408,0.13296799,3730.5,3729.8,1.80336884]
[1762155136601,0.13296799,3730.5,3729.7,3.2078]
[1762155136602,0.1357,3730.0,3729.7,3.2078]
[1762155136803,0.221,3729.8,3729.7,3.2078]
[1762155137009,0.1357,3730.0,3729.3,3.2078]
[1762155137513,0.1357,3729.5,3729.3,3.2078]
[1762155138216,0.1357,3730.0,3729.3,3.2078]
[1762155138916,0.1357,3729.5,3729.3,3.2078]
[1762155142213,0.1357,3730.0,3729.3,3.2078]
[1762155142409,3.2078,3730.2,3729.3,5.01116884]
[1762155142611,0.10819659,3730.1,3729.3,5.01116884]
[1762155142913,3.2078,3730.2,3729.3,5.01116884]
[1762155142914,0.24389659,3730.0,3729.3,5.01116884]
[1762155143114,0.1357,3730.0,3729.7,3.2078]
[1762155144616,0.10835557,3729.9,3729.7,3.2078]
[1762155144817,0.1357,3730.0,3729.7,3.2078]
[1762155145118,0.10839652,3729.9,3729.7,3.2078]
[1762155145315,0.13296799,3730.5,3729.8,1.80336884]
[1762155145621,0.1083987,3730.4,3730.1,3.2078]
[1762155145813,0.13296799,3730.5,3730.1,3.2078]
[1762155146015,0.10840017,3730.4,3730.1,3.2078]
[1762155146323,0.13296799,3730.5,3730.1,3.2078]
[1762155146519,0.10841947,3730.4,3730.1,3.2078]
[1762155146812,0.13296799,3730.5,3730.1,3.2078]
[1762155147020,0.00256799,3730.5,3730.1,3.2078]
[1762155147917,0.14316799,3730.5,3730.1,3.2078]
[1762155148316,0.10848163,3730.4,3730.1,3.2078]
[1762155148518,0.14316799,3730.5,3730.1,3.2078]
[1762155148716,0.10848131,3730.4,3730.1,3.2078]
[1762155148917,0.14316799,3730.5,3730.1,3.2078]
[1762155149118,0.10848134,3730.4,3730.1,3.2078]
[1762155149317,0.00256799,3730.5,3730.1,3.2078]
[1762155149522,0.10853942,3730.4,3730.1,3.2078]
[1762155149723,0.00256799,3730.5,3730.1,3.2078]
[1762155150220,0.14316799,3730.5,3730.1,3.2078]
[1762155150625,0.00256799,3730.5,3730.1,3.2078]
[1762155151722,0.00256799,3730.5,3730.2,0.48261]
[1762155152224,0.00256799,3730.5,3730.1,3.2078]
[1762155152720,0.14316799,3730.5,3730.1,3.2078]
[1762155154224,0.14316799,3730.5,3730.1,3.69042]
[1762155154422,0.14316799,3730.5,3730.4,1.15956501]
[1762155155923,0.14316799,3730.5,3730.3,1.15956501]
[1762155156125,0.14316799,3730.5,3730.1,3.2078]